bitfinex/quotes_SOLUSD_20241019
["timestamp","ask_amount","ask_price","bid_price","bid_amount"]
[1729358483294,6.68599029,156.07,156.0,23.776884]
[1729358483872,6.68599029,156.07,156.01,3.24535942]
[1729358484086,6.68599029,156.07,156.0,23.776884]
[1729358484293,6.68599029,156.07,156.01,3.24530653]
[1729358484491,6.68599029,156.07,156.0,23.776884]
[1729358484672,6.68599029,156.07,156.01,3.24530334]
[1729358484872,6.68599029,156.07,156.0,23.776884]
[1729358485401,6.68599029,156.07,156.01,3.24530334]
[1729358492283,6.68599029,156.07,156.0,23.776884]
[1729358492482,6.68599029,156.07,156.01,3.24515562]
[1729358492686,6.68599029,156.07,156.0,23.776884]
[1729358492901,6.68599029,156.07,156.01,3.24515562]
[1729358493202,6.68599029,156.07,156.0,23.776884]
[1729358493412,6.68599029,156.07,156.01,3.24513681]
[1729358493595,6.68599029,156.07,156.0,23.776884]
[1729358495088,6.68599029,156.07,156.01,3.24514026]
[1729358495291,6.68599029,156.07,156.0,23.776884]
[1729358496310,6.68599029,156.07,156.01,3.2453074]
[1729358496615,6.68599029,156.07,156.0,23.776884]
[1729358496914,6.68599029,156.07,156.01,3.2453503]
[1729358497090,6.68599029,156.07,156.0,23.776884]
[1729358497294,6.68599029,156.07,156.01,3.24538562]
[1729358497495,6.68599029,156.07,156.0,23.776884]
[1729358499714,6.68599029,156.07,156.01,3.24539039]
[1729358499907,6.68599029,156.07,156.0,23.776884]
[1729358500208,6.68599029,156.07,156.01,3.24549313]
[1729358500407,6.68599029,156.07,156.0,23.776884]
[1729358500622,6.68599029,156.07,156.01,3.24558539]
[1729358500787,6.68599029,156.07,156.0,23.776884]
[1729358502422,6.68599029,156.07,156.01,3.24558565]
[1729358502613,6.68599029,156.07,156.0,23.776884]
[1729358502794,6.68599029,156.07,156.01,3.24583969]
[1729358502994,6.68599029,156.07,156.0,23.776884]
[1729358503210,6.68599029,156.07,156.01,3.24583969]
[1729358503690,6.68599029,156.07,156.0,23.776884]
[1729358504917,6.68599029,156.07,156.01,3.24600731]
[1729358505109,6.68599029,156.07,156.0,23.776884]
[1729358505300,6.68599029,156.07,156.01,3.24622239]
[1729358505917,6.68599029,156.07,156.0,23.776884]
[1729358506496,6.68599029,156.07,156.01,3.24623925]
[1729358506695,6.68599029,156.07,156.0,23.776884]
[1729358506896,6.68599029,156.07,156.01,3.2461721]
[1729358507220,6.68599029,156.07,156.0,23.776884]
[1729358507699,6.68599029,156.07,156.01,3.24624182]
[1729358507899,6.68599029,156.07,156.0,23.776884]
[1729358508112,6.68599029,156.07,156.01,3.24624475]
[1729358509917,6.68599029,156.07,156.0,23.776884]
[1729358510115,6.68599029,156.07,156.01,3.246315]
[1729358510292,6.68599029,156.07,156.0,23.776884]
[1729358510493,6.68599029,156.07,156.01,3.24630281]
[1729358510789,6.68599029,156.07,156.0,23.776884]
[1729358511624,6.68599029,156.07,156.01,3.24630281]
[1729358511812,6.68599029,156.07,156.0,23.776884]
[1729358512012,6.68599029,156.07,156.01,3.24631706]
[1729358512205,6.68599029,156.07,156.0,23.776884]
[1729358512408,6.68599029,156.07,156.01,3.24630679]
[1729358512605,6.68599029,156.07,156.0,23.776884]
[1729358512806,6.68599029,156.07,156.01,3.24630972]
[1729358513006,6.68599029,156.07,156.0,23.776884]
[1729358513207,6.68599029,156.07,156.01,3.24630998]
[1729358513401,6.68599029,156.07,156.0,23.776884]
[1729358513608,6.68599029,156.07,156.01,3.24629254]
[1729358513810,6.68599029,156.07,156.0,23.776884]
[1729358514113,6.68599029,156.07,156.01,3.2463257]
[1729358514313,6.68599029,156.07,156.0,23.776884]
[1729358514520,6.68599029,156.07,156.01,3.24632902]
[1729358514712,6.68599029,156.07,156.0,23.776884]
[1729358515016,6.68599029,156.07,156.01,3.24632875]
[1729358515218,6.68599029,156.07,156.0,23.776884]
[1729358515399,6.68599029,156.07,156.01,3.24635623]
[1729358515600,6.68599029,156.07,156.0,23.776884]
[1729358515822,6.68599029,156.07,156.01,3.24635597]
[1729358516121,6.68599029,156.07,156.0,23.776884]
[1729358516324,6.68599029,156.07,156.01,3.24634154]
[1729358516517,6.68599029,156.07,156.0,23.776884]
[1729358516694,6.68599029,156.07,156.01,3.24632205]
[1729358516899,6.68599029,156.07,156.0,23.776884]
[1729358517100,6.68599029,156.07,156.01,3.24632205]
[1729358517295,6.68599029,156.07,156.0,23.776884]
[1729358517501,6.68599029,156.07,156.01,3.24636115]
[1729358517723,6.68599029,156.07,156.0,23.776884]
[1729358517909,6.68599029,156.07,156.01,3.24636116]
[1729358518110,6.68599029,156.07,156.0,23.776884]
[1729358518317,6.68599029,156.07,156.01,3.24640262]
[1729358518524,6.68599029,156.07,156.0,23.776884]
[1729358518707,6.68599029,156.07,156.01,3.24640608]
[1729358518914,6.68599029,156.07,156.0,23.776884]
[1729358519430,6.68599029,156.07,156.01,3.24640582]
[1729358519616,6.68599029,156.07,156.0,23.776884]
[1729358519807,6.68599029,156.07,156.01,3.24645799]
[1729358520009,6.68599029,156.07,156.0,23.776884]
[1729358520209,6.68599029,156.07,156.01,3.24645772]
[1729358520421,6.68599029,156.07,156.0,23.776884]
[1729358522505,6.68599029,156.07,156.01,3.24664778]
[1729358522705,6.68599029,156.07,156.0,23.776884]
[1729358523224,6.68599029,156.07,156.01,3.24666701]
[1729358523525,6.68599029,156.07,156.0,23.776884]
[1729358523730,6.68599029,156.07,156.01,3.24675828]
[1729358523909,6.68599029,156.07,156.0,23.776884]
[1729358524110,6.68599029,156.07,156.01,3.24675855]
[1729358524309,6.68599029,156.07,156.0,23.776884]
[1729358524501,6.68599029,156.07,156.01,3.24672692]
[1729358524705,6.68599029,156.07,156.0,23.776884]
[1729358524930,6.68599029,156.07,156.01,3.24676614]
[1729358525136,6.68599029,156.07,156.0,23.776884]
[1729358525825,6.68599029,156.07,156.01,3.24674685]
[1729358526417,6.4077,156.06,156.01,3.24674685]
[1729358526613,6.4082,156.05,155.98,7.39266731]
[1729358526929,6.4082,156.05,155.99,3.2468613]
[1729358527130,6.4082,156.05,156.0,3.2468613]
[1729358527305,6.4082,156.05,155.98,7.39266731]
[1729358530228,20.0,156.06,155.98,7.39266731]
[1729358530414,26.4078,156.06,155.98,7.39266731]
[1729358538038,20.0,156.06,155.98,7.39266731]
[1729358538214,15.39146316,156.07,155.98,7.39266731]
[1729358540839,15.39146316,156.07,155.96,23.776884]
[1729358541015,21.79916316,156.07,155.96,23.776884]
[1729358541215,26.4078,156.06,155.96,23.776884]
[1729358548826,20.0,156.04,155.95,21.5355]
[1729358549032,6.409,156.03,155.87,16.709962]
[1729358549216,20.0,155.98,155.87,29.95889622]
[1729358549422,20.0,155.98,155.87,23.274662]
[1729358550242,30.0,155.94,155.87,23.274662]
[1729358550417,30.0,155.94,155.87,21.774662]
[1729358557425,30.0,155.94,155.88,23.776884]
[1729358560925,30.0,155.94,155.87,21.774662]
[1729358562264,6.4118,155.97,155.87,21.774662]
[1729358563657,50.188284,155.97,155.87,21.774662]
[1729358564253,30.188284,155.97,155.87,21.774662]
[1729358565246,20.0,155.96,155.87,21.774662]
[1729358565463,26.4119,155.96,155.87,21.774662]
[1729358566259,26.4119,155.96,155.84,23.776884]
[1729358566260,21.7611,155.95,155.84,23.776884]
[1729358573944,21.7611,155.95,155.84,23.276884]
[1729358581547,30.0,155.93,155.84,23.276884]
[1729358589677,21.7612,155.95,155.84,23.276884]
[1729358593483,30.189684,155.94,155.83,6.5212]
[1729358604883,19.23,155.93,155.83,6.5212]
[1729358605186,30.189684,155.94,155.83,6.5212]
[1729358613085,23.776884,155.94,155.83,6.5212]
[1729358615002,15.3488,155.95,155.84,23.776884]
[1729358620087,21.7611,155.95,155.84,23.776884]
[1729358630085,6.4135,155.92,155.83,6.5212]
[1729358630474,20.0,155.91,155.83,6.5212]
[1729358631083,30.0,155.9,155.83,6.5212]
[1729358631290,30.0,155.9,155.82,15.6271]
[1729358635287,30.0,155.9,155.83,6.5433]
[1729358635487,16.46436313,155.95,155.84,31.17471268]
[1729358635998,15.3488,155.95,155.84,31.17471268]
[1729358636301,6.4127,155.94,155.84,31.17471268]
[1729358637190,20.0,155.91,155.83,6.5433]
[1729358640371,20.0,155.91,155.82,15.6271]
[1729358640679,6.4143,155.9,155.82,15.6271]
[1729358641272,20.0,155.91,155.82,15.6271]
[1729358641701,26.4139,155.91,155.82,15.6271]
[1729358648210,20.0,155.92,155.82,15.6271]
[1729358648395,6.4147,155.9,155.82,15.6271]
[1729358648596,6.4149,155.89,155.82,15.6271]
[1729358650093,6.4144,155.9,155.82,15.6271]
[1729358650710,39.23,155.92,155.82,15.6271]
[1729358650898,6.4146,155.9,155.82,15.6271]
[1729358651093,6.4149,155.89,155.79,6.5433]
[1729358652610,6.4151,155.88,155.79,6.5433]
[1729358654716,6.4158,155.87,155.79,6.5433]
[1729358655794,63.006884,155.89,155.79,6.5433]
[1729358655995,6.4161,155.86,155.79,6.5433]
[1729358659297,6.4165,155.85,155.78,16.2089]
[1729358660013,6.4171,155.84,155.75,6.236]
[1729358660225,6.4174,155.83,155.75,6.236]
[1729358660395,6.4182,155.81,155.74,16.2089]
[1729358660718,6.4186,155.8,155.74,16.2089]
[1729358660924,6.4186,155.8,155.71,6.869462]
[1729358661638,30.0,155.78,155.71,6.869462]
[1729358662130,29.5,155.78,155.71,6.869462]
[1729358663224,6.4197,155.77,155.71,0.633462]
[1729358663520,30.0,155.76,155.71,0.633462]
[1729358666422,36.4202,155.76,155.71,0.633462]
[1729358666927,30.0,155.76,155.71,0.633462]
[1729358667609,36.4202,155.76,155.71,0.633462]
[1729358677824,30.0,155.76,155.71,0.633462]
[1729358679706,30.0,155.76,155.71,22.905662]
[1729358680909,6.4189,155.79,155.71,22.905662]
[1729358690526,6.4192,155.79,155.71,22.905662]
[1729358690722,6.4217,155.72,155.71,0.633462]
[1729358694128,36.4217,155.72,155.71,0.633462]
[1729358697940,56.4217,155.72,155.71,0.633462]
[1729358699345,80.198584,155.72,155.71,0.633462]
[1729358700529,56.4217,155.72,155.71,0.633462]
[1729358702831,50.0,155.72,155.71,0.633462]
[1729358703034,80.198584,155.72,155.71,0.633462]
[1729358703853,86.89121481,155.72,155.71,0.633462]
[1729358704152,106.12121481,155.72,155.71,0.633462]
[1729358710836,112.62081481,155.72,155.71,0.633462]
[1729358711036,120.653414,155.72,155.71,0.633462]
[1729358716638,114.153814,155.72,155.71,0.633462]
[1729358728167,130.165314,155.72,155.71,0.633462]
[1729358730666,137.46427535,155.72,155.71,0.633462]
[1729358734161,137.46427535,155.72,155.71,6.2e-05]
[1729358734970,130.165314,155.72,155.71,6.2e-05]
[1729358751353,100.165314,155.72,155.71,6.2e-05]
[1729358752750,130.165314,155.72,155.71,6.2e-05]
[1729358754883,26.4246,155.65,155.64,15.6786]
[1729358755055,80.201484,155.65,155.64,15.6786]
[1729358755255,50.201884,155.64,155.63,6.2343]
[1729358755981,80.201884,155.64,155.63,6.2343]
[1729358756663,26.4263,155.61,155.6,15.2063]
[1729358757091,56.4263,155.61,155.6,15.2063]
[1729358758258,1.1173378,155.73,155.62,14.0568]
[1729358758762,6.68556133,155.77,155.69,26.5681]
[1729358759273,6.4203,155.76,155.69,20.1452]
[1729358759486,25.97556133,155.77,155.69,20.1452]
[1729358760060,6.4211,155.74,155.69,20.1452]
[1729358760263,6.4208,155.75,155.69,20.1452]
[1729358760680,20.0,155.75,155.69,20.1452]
[1729358760887,8.29047444,155.76,155.7,6.4225]
[1729358761453,8.29047444,155.76,155.69,20.1452]
[1729358761883,8.29047444,155.76,155.71,6.4221]
[1729358763355,20.0,155.75,155.71,6.4221]
[1729358766566,8.29047444,155.76,155.73,6.4211]
[1729358767176,8.29047444,155.76,155.75,6.4205]
[1729358768672,6.4177,155.82,155.76,12.435]
[1729358770380,20.0,155.81,155.76,12.435]
[1729358771559,20.0,155.81,155.77,6.4197]
[1729358772167,8.06398568,155.82,155.79,6.4185]
[1729358773865,8.06398568,155.82,155.76,6.015]
[1729358774364,6.68344289,155.87,155.77,23.776884]
[1729358774585,6.68344289,155.87,155.82,6.4172]
[1729358775158,6.68344289,155.87,155.83,6.4172]
[1729358779081,6.4152,155.88,155.83,6.4172]
[1729358779278,6.4148,155.89,155.84,6.4168]
[1729358779487,20.0,155.88,155.84,6.4168]
[1729358779677,14.47532813,155.89,155.84,6.4168]
[1729358781000,8.06052813,155.89,155.85,6.4163]
[1729358781496,14.47532813,155.89,155.84,6.4164]
[1729358781794,8.06052813,155.89,155.82,6.015]
[1729358781987,8.06052813,155.89,155.86,6.4159]
[1729358782671,8.06052813,155.89,155.83,6.4172]
[1729358782992,8.06052813,155.89,155.85,6.4163]
[1729358783289,8.06052813,155.89,155.85,5.9163]
[1729358796884,8.06052813,155.89,155.87,6.4154]
[1729358797201,8.06052813,155.89,155.85,6.4161]
[1729358807892,8.06052813,155.89,155.86,6.4157]
[1729358809397,8.06052813,155.89,155.87,6.4152]
[1729358812793,8.06052813,155.89,155.86,6.416]
[1729358839224,8.06052813,155.89,155.83,23.776884]
[1729358860734,6.4139,155.91,155.83,23.776884]
[1729358871952,16.6123,155.93,155.83,23.776884]
[1729358872247,16.6123,155.93,155.83,33.83079625]
[1729358872452,16.6123,155.93,155.83,42.08855192]
[1729358872647,16.6123,155.93,155.85,23.776884]
[1729358878552,20.0,155.96,155.85,23.776884]
[1729358878731,20.0,155.96,155.85,42.08855192]
[1729358881834,20.0,155.96,155.86,8.25775567]
[1729358882033,20.0,155.96,155.87,23.776884]
[1729358882932,28.4809,155.97,155.87,23.776884]
[1729358883861,28.4809,155.97,155.87,32.03463967]
[1729358885336,22.0691,155.97,155.87,32.03463967]
[1729358885539,22.0691,155.97,155.87,38.29243967]
[1729358886139,22.0691,155.97,155.87,30.034684]
[1729358888160,22.0691,155.97,155.87,38.29243967]
[1729358890142,22.0691,155.97,155.89,23.776884]
[1729358891458,20.0,156.01,155.89,23.776884]
[1729358891660,6.4107,155.99,155.89,8.25775567]
[1729358891971,6.4107,155.99,155.9,23.776884]
[1729358894666,6.4111,155.98,155.9,23.776884]
[1729358898076,6.4107,155.99,155.9,23.776884]
[1729358899146,6.4107,155.99,155.89,23.776884]
[1729358902479,15.8885,155.97,155.89,23.776884]
[1729358902691,15.8885,155.97,155.87,6.2578]
[1729358903352,6.4119,155.96,155.87,6.2578]
[1729358903557,15.8885,155.97,155.87,6.2578]
[1729358903778,15.8885,155.97,155.88,23.776884]
[1729358904483,22.3,155.97,155.88,23.776884]
[1729358909893,15.8885,155.97,155.88,23.776884]
[1729358910185,6.4122,155.96,155.87,23.776884]
[1729358910879,15.8885,155.97,155.85,7.79874025]
[1729358911083,6.4126,155.95,155.85,7.79874025]
[1729358911285,6.4126,155.95,155.83,6.3611]
[1729358912162,6.4126,155.95,155.84,23.776884]
[1729358912883,6.4126,155.95,155.87,20.0]
[1729358915376,6.4126,155.95,155.83,6.3611]
[1729358915587,6.4126,155.95,155.84,23.776884]
[1729358916860,6.4126,155.95,155.86,23.776884]
[1729358920680,6.412,155.96,155.88,23.776884]
[1729358922288,6.412,155.96,155.89,20.0]
[1729358924681,6.412,155.96,155.88,23.776884]
[1729358925371,6.412,155.96,155.89,20.0]
[1729358925567,22.3,155.97,155.89,20.0]
[1729358927973,22.3,155.97,155.9,23.776884]
[1729358928374,15.8885,155.97,155.9,23.776884]
[1729358946410,22.3001,155.97,155.9,23.776884]
[1729358946999,6.412,155.96,155.87,14.11454025]
[1729358947395,22.3002,155.97,155.87,14.11454025]
[1729358947889,22.3001,155.97,155.87,14.11454025]
[1729358948092,22.3001,155.97,155.87,6.3158]
[1729358948992,22.3001,155.97,155.88,23.776884]
[1729358950609,15.8885,155.97,155.88,23.776884]
[1729359026756,6.4131,155.93,155.81,19.26763564]
[1729359027066,6.4131,155.93,155.81,15.9082]
[1729359029759,23.24234654,155.94,155.82,23.776884]
[1729359040075,15.1093,155.94,155.84,30.018184]
[1729359040274,15.1093,155.94,155.84,36.16993194]
[1729359046567,15.1093,155.94,155.84,44.72455347]
[1729359047302,15.1093,155.94,155.84,38.57280553]
[1729359048294,15.1093,155.94,155.84,44.72455347]
[1729359053595,21.4284,155.94,155.84,29.92863194]
[1729359054177,21.4284,155.94,155.86,23.776884]
[1729359054375,21.4284,155.94,155.88,23.776884]
[1729359054585,21.4284,155.94,155.89,2.212337]
[1729359054799,21.4284,155.94,155.9,2.212337]
[1729359054980,21.4284,155.94,155.91,2.212337]
[1729359055189,21.4284,155.94,155.92,2.212337]
[1729359055402,21.4284,155.94,155.85,23.776884]
[1729359055693,21.4284,155.94,155.87,23.776884]
[1729359055879,21.4284,155.94,155.88,2.21254016]
[1729359056077,21.4284,155.94,155.89,2.21254016]
[1729359056276,21.4284,155.94,155.87,23.776884]
[1729359065999,15.1093,155.94,155.87,23.776884]
[1729359067495,15.1093,155.94,155.86,23.776884]
[1729359067676,21.2255,155.98,155.86,38.48325347]
[1729359068397,21.2255,155.98,155.86,32.33150553]
[1729359068778,21.2255,155.98,155.86,38.48325347]
[1729359072096,21.2255,155.98,155.86,41.81945524]
[1729359074310,21.2255,155.98,155.86,35.6677073]
[1729359074491,21.2255,155.98,155.86,41.81945524]
[1729359081601,21.2255,155.98,155.86,38.48325347]
[1729359081806,15.1205,155.97,155.86,6.15174794]
[1729359082103,15.1205,155.97,155.82,15.7718]
[1729359082104,21.5328,155.95,155.82,15.7718]
[1729359083091,21.5328,155.95,155.83,23.776884]
[1729359087610,15.1205,155.95,155.83,32.33150553]
[1729359088416,15.1205,155.95,155.84,8.55462153]
[1729359088590,15.1205,155.95,155.85,23.776884]
[1729359095639,15.1205,155.95,155.83,6.15174794]
[1729359095640,6.4129,155.94,155.83,6.15174794]
[1729359095914,15.8086,155.93,155.83,6.15174794]
[1729359096830,15.8086,155.93,155.84,23.776884]
[1729359099310,15.8086,155.93,155.84,29.92863194]
[1729359101633,15.8086,155.93,155.84,38.48325347]
[1729359101808,15.8086,155.93,155.86,23.776884]
[1729359104330,15.8086,155.93,155.85,23.776884]
[1729359104507,15.8086,155.93,155.85,29.92863194]
[1729359105312,15.8086,155.93,155.85,23.776884]
[1729359106438,15.8086,155.93,155.85,30.043684]
[1729359106626,6.105,155.96,155.85,30.043684]
[1729359106818,6.105,155.96,155.85,38.59830553]
[1729359108135,6.105,155.96,155.85,38.59830553]
[1729359115657,6.105,155.96,155.85,44.33961458]
[1729359120850,6.105,155.96,155.87,23.776884]
[1729359136858,16.378,155.97,155.88,8.55462153]
[1729359137065,16.378,155.97,155.89,23.776884]
[1729359150170,16.378,155.97,155.89,29.51819305]
[1729359150366,16.378,155.97,155.89,38.07281458]
[1729359151378,6.3579,155.99,155.87,18.43880621]
[1729359151379,6.3579,155.99,155.91,23.776884]
[1729359151581,15.6764,156.01,155.91,23.776884]
[1729359153479,15.6764,156.01,155.91,38.07281458]
[1729359154279,15.6764,156.01,155.91,32.33150553]
[1729359156180,15.6764,156.01,155.9,7.02854532]
[1729359157864,22.0794,156.0,155.91,23.776884]
[1729359158077,28.4898,156.0,155.9,7.02854532]
[1729359158276,15.6764,155.99,155.9,7.02854532]
[1729359159383,15.6764,155.99,155.91,23.776884]
[1729359159594,15.6764,155.98,155.91,23.776884]
[1729359159982,15.6764,155.98,155.9,7.02854532]
[1729359161388,15.6764,155.98,155.91,23.776884]
[1729359161582,6.403,155.97,155.91,23.776884]
[1729359161772,15.6764,155.96,155.91,23.776884]
[1729359162182,15.6764,155.96,155.9,7.02854532]
[1729359165478,6.0134,155.93,155.82,6.69423881]
[1729359165799,6.0134,155.93,155.79,24.46282153]
[1729359165800,16.637,155.92,155.79,24.46282153]
[1729359166294,16.637,155.92,155.8,16.7397749]
[1729359166600,16.637,155.92,155.81,18.16987123]
[1729359166790,16.637,155.92,155.82,23.776884]
[1729359166968,16.637,155.92,155.83,8.55462153]
[1729359167173,16.637,155.92,155.84,23.776884]
[1729359167401,16.637,155.92,155.84,32.33150553]
[1729359176000,16.637,155.92,155.83,23.776884]
[1729359186204,16.637,155.92,155.83,32.33150553]
[1729359188608,16.637,155.92,155.83,23.776884]
[1729359188812,16.637,155.92,155.82,6.3488]
[1729359189524,16.637,155.92,155.8,8.18515337]
[1729359190098,16.637,155.92,155.81,23.776884]
[1729359190301,23.0506,155.92,155.81,23.776884]
[1729359190516,16.637,155.92,155.81,23.776884]
[1729359198318,23.0507,155.92,155.81,23.776884]
[1729359199498,16.637,155.92,155.8,8.18515337]
[1729359199698,23.0339,155.89,155.8,8.18515337]
[1729359200799,23.0339,155.89,155.81,23.776884]
[1729359203523,35.44,155.88,155.75,6.69735685]
[1729359203824,41.8555,155.88,155.72,22.3289]
[1729359205819,41.8555,155.88,155.73,23.776884]
[1729359207125,15.44,155.88,155.73,23.776884]
[1729359207435,15.44,155.88,155.76,15.9082]
[1729359207804,15.44,155.88,155.77,23.776884]
[1729359218930,15.44,155.88,155.77,27.17037751]
[1729359224439,15.44,155.88,155.77,23.776884]
[1729359228426,15.44,155.88,155.77,31.47552775]
[1729359240547,15.44,155.88,155.77,23.776884]
[1729359240724,6.69770236,155.92,155.75,6.69765056]
[1729359240725,22.9898,155.87,155.75,6.69765056]
[1729359240929,16.5742,155.85,155.74,6.4207]
[1729359242233,16.5742,155.85,155.75,23.776884]
[1729359242631,16.5742,155.85,155.75,31.47552775]
[1729359245548,16.5742,155.85,155.75,23.776884]
[1729359245749,16.5742,155.85,155.74,23.776884]
[1729359253355,15.6564,155.84,155.73,23.776884]
[1729359253554,15.6564,155.84,155.72,15.191]
[1729359253555,15.6564,155.84,155.72,23.776884]
[1729359256439,6.3259,155.83,155.71,14.88814843]
[1729359256751,15.6564,155.82,155.71,14.88814843]
[1729359256955,15.6564,155.82,155.71,8.18824467]
[1729359257732,15.6564,155.82,155.72,23.776884]
[1729359288677,15.6564,155.82,155.71,23.776884]
[1729359314592,15.7927,155.81,155.71,23.776884]
[1729359317009,22.2107,155.81,155.71,23.776884]
[1729359317301,22.2108,155.81,155.71,23.776884]
[1729359319712,6.4185,155.8,155.71,23.776884]
[1729359320013,15.7927,155.79,155.71,23.776884]
[1729359320209,22.2117,155.79,155.66,13.22484871]
[1729359320383,22.2117,155.79,155.67,23.776884]
[1729359323579,15.6511,155.78,155.67,23.776884]
[1729359333605,15.6511,155.78,155.69,23.776884]
[1729359335821,15.6511,155.83,155.71,23.776884]
[1729359362570,15.6511,155.83,155.71,31.47552775]
[1729359397767,15.6511,155.83,155.73,23.776884]
[1729359399265,6.4183,155.81,155.73,23.776884]
[1729359399471,16.6398,155.8,155.73,23.776884]
[1729359416487,8.33315383,155.83,155.73,23.776884]
[1729359422083,8.33315383,155.83,155.73,31.47552775]
[1729359428491,15.5153,155.84,155.73,37.58832775]
[1729359429991,15.5153,155.84,155.74,7.69864375]
[1729359430195,15.5153,155.84,155.75,23.776884]
[1729359433480,15.5153,155.84,155.75,7.69864375]
[1729359433809,15.5153,155.84,155.76,23.776884]
[1729359437996,14.5153,155.84,155.76,23.776884]
[1729359445196,14.5153,155.84,155.75,23.776884]
[1729359447893,14.5153,155.84,155.74,23.776884]
[1729359455488,20.9323,155.84,155.74,23.776884]
[1729359455686,36.41364258,155.89,155.73,6.69829349]
[1729359455687,16.1178,155.81,155.73,6.69829349]
[1729359455901,12.4571,155.8,155.72,7.07788473]
[1729359456107,16.1178,155.79,155.72,7.07788473]
[1729359457390,16.1178,155.79,155.73,23.776884]
[1729359484028,16.1178,155.79,155.72,7.07788473]
[1729359484229,22.4301,155.79,155.72,7.07788473]
[1729359489816,28.8491,155.79,155.72,7.07788473]
[1729359490154,22.4301,155.79,155.72,7.07788473]
[1729359490332,6.4194,155.78,155.72,7.07788473]
[1729359493541,6.4194,155.78,155.66,23.776884]
[1729359513355,28.8489,155.79,155.66,23.776884]
[1729359527174,6.4193,155.78,155.66,23.776884]
[1729359527465,15.7021,155.77,155.66,23.776884]
[1729359528255,22.1222,155.77,155.66,23.776884]
[1729359537266,65.514984,155.76,155.64,7.69864375]
[1729359537467,15.7021,155.73,155.58,22.98234943]
[1729359537777,15.7021,155.73,155.58,28.57017547]
[1729359538963,15.7021,155.73,155.59,23.776884]
[1729359540954,15.7021,155.73,155.6,21.866]
[1729359541166,15.7021,155.73,155.61,23.776884]
[1729359541354,15.7021,155.73,155.61,29.29924204]
[1729359548772,15.7021,155.73,155.61,23.776884]
[1729359551271,15.6881,155.77,155.66,23.776884]
[1729359557068,15.6881,155.77,155.66,27.0928551]
[1729359557466,15.6881,155.77,155.66,32.61521314]
[1729359562584,15.6881,155.77,155.66,27.0928551]
[1729359562784,15.6881,155.77,155.66,32.61521314]
[1729359570390,15.6881,155.77,155.76,6.4201]
[1729359588791,15.6881,155.77,155.75,16.0508]
[1729359588989,15.6881,155.77,155.75,22.4712]
[1729359589898,15.6881,155.77,155.72,16.0539]
[1729359590090,22.1079,155.77,155.73,6.4212]
[1729359590404,15.6881,155.77,155.73,6.4212]
[1729359603914,15.6881,155.77,155.71,5.80686852]
[1729359604207,15.6881,155.77,155.74,6.4208]
[1729359605394,6.6402,155.8,155.71,5.80686852]
[1729359605592,6.6402,155.8,155.77,6.4194]
[1729359608617,15.9319,155.81,155.77,6.4194]
[1729359612107,15.9319,155.81,155.71,5.80686852]
[1729359612418,15.9319,155.81,155.78,6.4192]
[1729359613813,15.9319,155.81,155.78,6.419]
[1729359613995,15.9319,155.81,155.79,6.4188]
[1729359624824,15.9319,155.81,155.78,22.4673]
[1729359627133,15.9319,155.81,155.78,16.0481]
[1729359627441,6.6851287,155.83,155.74,6.3276]
[1729359627611,6.4647,155.84,155.79,6.4185]
[1729359628327,12.8816,155.84,155.79,6.4185]
[1729359630532,6.4176,155.82,155.77,6.4195]
[1729359630836,43.776884,155.81,155.71,5.80686852]
[1729359631215,20.0,155.79,155.73,6.421]
[1729359631410,6.4192,155.79,155.73,6.421]
[1729359632959,43.776884,155.81,155.73,6.421]
[1729359633263,6.4202,155.76,155.71,6.422]
[1729359634545,15.0245,155.77,155.67,5.4518197]
[1729359634758,21.4442,155.77,155.72,6.4216]
[1729359638965,15.0245,155.77,155.72,6.4216]
[1729359639168,6.4206,155.75,155.67,5.4518197]
[1729359639468,6.4206,155.75,155.7,6.4222]
[1729359640761,6.421,155.74,155.67,5.4518197]